fUSD/lending_fUSD_20241104
["ID","MTS","AMOUNT","RATE_DAILY","PERIOD"]
[341309469,1730751046023,-503.6250407,0.00032876,2]
[341309470,1730751046032,-500.0,0.00032876,2]
[341309471,1730751046042,-500.0,0.00032876,2]
[341309472,1730751046052,-500.0,0.00032876,2]
[341309473,1730751046062,-500.0,0.00032876,30]
[341309475,1730751046072,-500.0,0.00032876,2]
[341309477,1730751046082,-500.0,0.00032876,2]
[341309479,1730751046093,-500.0,0.00032876,2]
[341309481,1730751046103,-500.0,0.00032876,2]
[341309483,1730751046112,-500.0,0.00032876,2]
[341309485,1730751046121,-500.0,0.00032876,2]
[341309487,1730751046131,-500.0,0.00032876,2]
[341309489,1730751046140,-500.0,0.00032876,2]
[341309491,1730751046150,-1000.0,0.00032876,2]
[341309493,1730751046159,-500.0,0.00032876,2]
[341309494,1730751046168,-500.0,0.00032876,2]
[341309497,1730751046178,-500.0,0.00032876,2]
[341309498,1730751046187,-500.0,0.00032876,2]
[341309501,1730751046197,-500.0,0.00032876,2]
[341309504,1730751046207,-500.0,0.00032876,2]
[341309507,1730751046217,-500.0,0.00032876,2]
[341309510,1730751046226,-500.0,0.00032876,2]
[341309514,1730751046236,-293.5813844,0.00032876,2]
[341309517,1730751046244,-500.0,0.00032876,2]
[341309520,1730751046254,-500.0,0.00032876,2]
[341309523,1730751046263,-500.0,0.00032876,2]
[341309525,1730751046272,-500.0,0.00032876,2]
[341309528,1730751046281,-500.0,0.00032876,2]
[341309531,1730751046290,-501.83716365,0.00032876,2]
[341309534,1730751046299,-500.0,0.00032876,2]
[341309538,1730751046309,-500.0,0.00032876,2]
[341309541,1730751046319,-500.0,0.00032876,2]
[341309544,1730751046328,-500.0,0.00032876,2]
[341309548,1730751046338,-500.0,0.00032876,2]
[341309552,1730751046347,-500.0,0.00032876,2]
[341309555,1730751046357,-500.0,0.00032876,2]
[341309558,1730751046367,-500.0,0.00032876,2]
[341309561,1730751046376,-500.0,0.00032876,2]
[341309564,1730751046385,-500.0,0.00032876,2]
[341309566,1730751046394,-74.41744206,0.00032876,2]
[341309608,1730751046725,-190.05,0.00032766,2]
[341309610,1730751046735,-190.05,0.00032866,2]
[341309612,1730751046744,-190.05,0.00032866,2]
[341309614,1730751046753,-425.58255794,0.00032876,2]
[341309616,1730751046762,-500.0,0.00032876,2]
[341309618,1730751046772,-545.69932203,0.00032876,2]
[341309620,1730751046781,-500.0,0.00032876,2]
[341309622,1730751046790,-187.82047292,0.00032876,2]
[341309624,1730751046799,-500.0,0.00032876,2]
[341309625,1730751046808,-500.0,0.00032876,2]
[341309627,1730751046817,-500.0,0.00032876,2]
[341309629,1730751046827,-500.0,0.00032876,2]
[341309631,1730751046836,-500.0,0.00032876,2]
[341309633,1730751046845,-500.0,0.00032876,2]
[341309635,1730751046854,-500.0,0.00032876,2]
[341309637,1730751046863,-500.0,0.00032876,2]
[341309639,1730751046872,-500.0,0.00032876,2]
[341309641,1730751046881,-500.0,0.00032876,2]
[341309643,1730751046890,-500.0,0.00032876,2]
[341309645,1730751046900,-500.0,0.00032876,2]
[341309647,1730751046909,-500.0,0.00032876,2]
[341309649,1730751046918,-500.0,0.00032876,2]
[341309651,1730751046927,-196.43303634,0.00032876,2]
[341309653,1730751046936,-500.0,0.00032876,2]
[341309655,1730751046945,-500.0,0.00032876,2]
[341309657,1730751046954,-500.0,0.00032876,2]
[341309659,1730751046964,-500.0,0.00032876,2]
[341309661,1730751046973,-500.0,0.00032876,2]
[341309663,1730751046982,-627.69,0.00032876,2]
[341309665,1730751046991,-500.0,0.00032876,2]
[341309667,1730751047000,-500.0,0.00032876,2]
[341309669,1730751047010,-500.0,0.00032876,2]
[341309671,1730751047022,-500.0,0.00032876,2]
[341309673,1730751047031,-500.0,0.00032876,2]
[341309675,1730751047040,-364.97062557,0.00032876,2]
[341309852,1730751539651,-474.84,0.00030562,2]
[341309853,1730751539676,-250.0,0.00031622,2]
[341309854,1730751539699,-310.01121682,0.00031699,2]
[341309855,1730751539723,-186.76,0.00031754,120]
[341309856,1730751539747,-192.14,0.00031799,2]
[341309857,1730751539769,-250.0,0.00031816,2]
[341309858,1730751539792,-200.0,0.00031862,2]
[341309859,1730751539813,-200.0,0.0003191,2]
[341309860,1730751539838,-331.86,0.00031944,2]
[341309861,1730751539860,-500.0,0.000321,30]
[341309862,1730751539883,-500.0,0.000321,30]
[341309863,1730751539906,-15447.38878318,0.00032122,2]
[341309864,1730751574441,161.0,0.00015342,2]
[341309866,1730751908689,5755.89559448,0.00016,2]
[341309867,1730751908718,10000.0,0.00016,2]
[341309868,1730751908750,4328.0,0.00016,2]
[341309869,1730751908775,2790.94,0.00016,2]
[341309870,1730751908804,1607939.58767433,0.00016,2]
[341309871,1730751931160,15048.36401243,0.000101,2]
[341309872,1730751958417,-5758.79233974,0.0001892,2]
[341309876,1730752036005,-8069.93562396,0.00022,2]
[341309890,1730752081524,2100.0,0.0001,2]
[341309891,1730752082731,86504.1205074,0.000145,3]
[341309892,1730752084670,469622.72665441,0.00015,2]
[341309894,1730752090731,156.38,0.00015342,2]
[341309895,1730752099520,6117.75362721,0.0001439,2]
[341309898,1730752102967,600.0,0.000135,2]
[341309902,1730752114634,302.15895445,0.000129,2]
[341309903,1730752123669,1649.44914671,0.0001,2]
[341309904,1730752126545,450.0,0.00013,2]
[341309920,1730752231836,-9178.47099708,0.00023999,2]
[341309921,1730752231845,-414.0,0.000246,2]
[341309922,1730752231856,-1256.82156721,0.00029,3]
[341309923,1730752231866,-483.53,0.00029832,2]
[341309924,1730752231875,-165.9585,0.0003,2]
[341309925,1730752231884,-165.9585,0.0003,2]
[341309926,1730752231894,-156.38,0.00030548,2]
[341309927,1730752231903,-150.937,0.0003077,2]
[341309928,1730752231913,-360.15,0.00031111,120]
[341309929,1730752231923,-250.0,0.00031374,2]
[341309930,1730752231932,-150.942,0.0003165,7]
[341309931,1730752231942,-1000.0,0.00031671,2]
[341309932,1730752231951,-250.0,0.00031687,2]
[341309933,1730752231961,-6663.0585,0.00031695,7]
[341309934,1730752231970,-165.93,0.00031729,2]
[341309935,1730752231980,-250.0,0.00031765,2]
[341309936,1730752231990,-13678.69811937,0.00031795,2]
[341309937,1730752232217,-694.94,0.00031795,2]
[341309938,1730752232331,-8069.93562396,0.00031795,2]
[341309952,1730752237852,-408.0085986,0.00031795,2]
[341309953,1730752237864,-591.9914014,0.00031795,2]
[341309954,1730752237875,-456.42625667,0.00031795,2]
[341309955,1730752237884,-150.0,0.00031841,7]
[341309956,1730752237893,-379.01947649,0.00031922,15]
[341309957,1730752237904,-1301.15361802,0.00031922,15]
[341309958,1730752237915,-749.86877271,0.00031922,15]
[341309959,1730752237926,-4174.30265181,0.00031922,15]
[341309960,1730752237936,-422.25,0.0003199,10]
[341309961,1730752237946,-170.69276057,0.00031999,2]
[341309962,1730752237955,-500.0,0.00031999,2]
[341309963,1730752237966,-1621.85587395,0.00032,2]
[341310022,1730752239972,-1300.97164782,0.00032,2]
[341310023,1730752239990,-2261.82892603,0.00032,2]
[341310024,1730752240069,-2213.37073298,0.00032,2]
[341310025,1730752240082,-471.3419088,0.00032,2]
[341310026,1730752240093,-479.62237644,0.00032,2]
[341310070,1730752242904,-212376.20787296,0.00032,2]
[341310077,1730752242961,-11985.73949989,0.00032,2]
[341310091,1730752245846,-1733.48927041,0.00032,2]
[341310092,1730752246071,-24876.00000063,0.00032,2]
[341310093,1730752262838,-3110.08320697,0.00033323,120]
[341310094,1730752266667,816.96710659,0.0003196,120]
[341310095,1730752485833,377.12,0.00031768,120]
[341310096,1730752565695,179.66,0.00015342,2]
[341310097,1730752617621,3947.4012786,0.0001,2]
[341310099,1730752802368,150.0,0.0001,2]
[341310100,1730752802562,150.0,0.0001,2]
[341310101,1730752802763,150.0,0.0001,2]
[341310102,1730752802980,150.0,0.0001,2]
[341310103,1730752803207,150.0,0.0001,2]
[341310104,1730752803454,150.0,0.0001,2]
[341310105,1730752803913,150.0,0.0001,2]
[341310106,1730752804135,150.0,0.0001,2]
[341310107,1730752804382,150.0,0.0001,2]
[341310108,1730752804604,150.0,0.0001,2]
[341310109,1730752804789,150.0,0.0001,2]
[341310110,1730752805008,150.0,0.0001,2]
[341310111,1730752805211,150.0,0.0001,2]
[341310112,1730752919052,215.3960899,0.00034,120]
[341310113,1730752977794,-351.14,0.00034249,120]
[341310114,1730752977838,-999.0,0.00034849,120]
[341310115,1730752977882,-1000.0,0.00035616,120]
[341310116,1730752977914,-999.0,0.00035616,120]
[341310117,1730752977950,-186.76,0.00035723,120]
[341310118,1730752977982,-377.12,0.00035739,120]
[341310119,1730752978016,-1000.0,0.0003589,120]
[341310120,1730753009245,-1000.0,0.00036164,120]
[341310121,1730753009276,-999.0,0.00036301,120]
[341310122,1730753009308,-1000.0,0.00036438,120]
[341310123,1730753009338,-1000.0,0.00036712,120]
[341310124,1730753009371,-351.14,0.00036833,120]
[341310125,1730753009400,-1000.0,0.00036986,120]
[341310126,1730753009429,-999.0,0.00036986,120]
[341310127,1730753009459,-6020.0,0.00037,120]
[341310128,1730753076133,156.29,0.00015342,2]
[341310156,1730753432158,-150.0,0.00018107,2]
[341310157,1730753432167,-306.516,0.0002938,2]
[341310158,1730753432204,-183.654,0.0002938,2]
[341310159,1730753432213,-187.33,0.00030315,2]
[341310160,1730753432223,-3216.53795537,0.00030786,2]
[341310161,1730753432413,-1513.29037339,0.00030786,2]
[341310162,1730753432426,-590.55035553,0.00030786,2]
[341310163,1730753432437,-2961.31716274,0.00030786,2]
[341310164,1730753432453,-676.5317229,0.00030786,2]
[341310172,1730753438079,-13791.4966,0.00030786,2]
[341310173,1730753438134,-697.40976106,0.00030786,2]
[341310174,1730753438145,-347.51999998,0.00030786,2]
[341310175,1730753438354,-105.34606903,0.00030786,2]
[341310176,1730753438364,-413.67,0.00030861,2]
[341310177,1730753438374,-364.61,0.00030986,2]
[341310178,1730753438383,-150.0,0.00031077,7]
[341310179,1730753438392,-317.71393097,0.00031077,2]
[341310195,1730753440231,-1734.37606903,0.00031077,2]
[341310196,1730753440241,-155.32,0.00031164,2]
[341310197,1730753440250,-250.0,0.0003121,2]
[341310198,1730753440260,-300.12,0.00031222,120]
[341310199,1730753440270,-316.02,0.00031224,30]
[341310200,1730753440279,-800.0,0.00031282,2]
[341310201,1730753440288,-353.5448,0.00031286,7]
[341310202,1730753440298,-9411.44119817,0.00031286,2]
[341310243,1730753443192,-9554.55650183,0.00031286,2]
[341310244,1730753443202,-1478.84,0.00031286,2]
[341310245,1730753443211,-250.0,0.00031332,2]
[341310246,1730753443221,-250.0,0.00031369,2]
[341310247,1730753443232,-300.0,0.00031385,2]
[341310248,1730753443242,-670.89,0.00031386,2]
[341310249,1730753443251,-802.02,0.00031386,2]
[341310250,1730753443260,-187.33,0.00031451,2]
[341310251,1730753443269,-166.37,0.00031493,2]
[341310252,1730753443278,-4650.0,0.0003158,2]
[341310253,1730753443288,-490.17,0.00031644,2]
[341310254,1730753443297,-200.0,0.00031785,2]
[341310255,1730753443307,-14808.57189009,0.00032,2]
[341310256,1730753443316,-4000.0,0.000325,3]
[341310257,1730753443325,-187.33,0.00032588,2]
[341310258,1730753443334,-175.01,0.00032666,10]
[341310259,1730753443344,-34527.91160808,0.00032676,2]
[341310260,1730753443355,-3290.99829192,0.00032676,2]
[341310261,1730753443364,-8554.1678437,0.00032676,2]
[341310270,1730753446083,-233.1360563,0.00032676,2]
[341310271,1730753446093,-295.95004474,0.00032676,2]
[341310272,1730753446105,-204.04995526,0.00032676,2]
[341310273,1730753446114,-714.076617,0.00032676,2]
[341310274,1730753446195,-2107.17916668,0.00032676,2]
[341310282,1730754154296,153.73,0.00015342,2]
[341310320,1730754632191,-1717.0,0.000245,2]
[341310321,1730754632202,-441.15,0.00029191,2]
[341310322,1730754632212,-165.607,0.0003,2]
[341310323,1730754632223,-165.607,0.0003,2]
[341310324,1730754632233,-187.33,0.00030055,2]
[341310325,1730754632243,-250.1,0.00030612,120]
[341310326,1730754632254,-226.27,0.00030632,120]
[341310327,1730754632263,-250.0,0.00030644,2]
[341310328,1730754632274,-23900.0,0.00030662,2]
[341310329,1730754632284,-250.0,0.0003074,2]
[341310330,1730754632294,-150.0,0.00030758,7]
[341310331,1730754632304,-308.24,0.00030894,30]
[341310332,1730754632314,-250.0,0.00031047,2]
[341310333,1730754632325,-1400.0,0.000311,11]
[341310334,1730754632335,-640.0,0.00031109,2]
[341310335,1730754632347,-182.3,0.00031109,2]
[341310336,1730754632357,-2800.0,0.000312,11]
[341310337,1730754632367,-4300.0,0.000313,11]
[341310338,1730754632377,-5700.0,0.000314,11]
[341310339,1730754632387,-441.15,0.00031455,2]
[341310340,1730754632398,-7100.0,0.000315,11]
[341310341,1730754632408,-360.0,0.00031595,2]
[341310342,1730754632418,-242.59,0.00031595,2]
[341310343,1730754632427,-1000.0,0.000316,2]
[341310344,1730754632437,-1400.0,0.000316,11]
[341310345,1730754632450,-150.110506,0.00031698,2]
[341310346,1730754632461,-150.110506,0.00031698,9]
[341310347,1730754632471,-150.110506,0.00031698,10]
[341310348,1730754632481,-157.110506,0.00031698,3]
[341310349,1730754632491,-157.110506,0.00031698,4]
[341310350,1730754632500,-157.110506,0.00031698,5]
[341310351,1730754632510,-157.110506,0.00031698,8]
[341310352,1730754632520,-157.110506,0.00031698,6]
[341310353,1730754632530,-157.110506,0.00031698,7]
[341310354,1730754632540,-1400.0,0.000317,11]
[341310356,1730754632550,-150.110506,0.00031798,4]
[341310358,1730754632561,-157.110506,0.00031798,9]
[341310360,1730754632570,-157.110506,0.00031798,3]
[341310361,1730754632580,-157.110506,0.00031798,2]
[341310362,1730754632590,-157.110506,0.00031798,6]
[341310363,1730754632605,-157.110506,0.00031798,5]
[341310364,1730754632617,-157.110506,0.00031798,7]
[341310365,1730754632629,-157.110506,0.00031798,10]
[341310366,1730754632640,-843.5656,0.000318,2]
[341310367,1730754632651,-1944.75,0.000318,2]
[341310368,1730754632662,-1400.0,0.000318,11]
[341310369,1730754632674,-1171.71242239,0.000318,2]
[341310371,1730754632685,-786.2575,0.000318,2]
[341310373,1730754632698,-1171.71242233,0.00031814,2]
[341310376,1730754632709,-1171.71242233,0.00031829,2]
[341310378,1730754632720,-1171.71242233,0.00031843,2]
[341310380,1730754632731,-1171.71242233,0.00031857,2]
[341310382,1730754632741,-1171.71242233,0.00031871,2]
[341310384,1730754632752,-500.0,0.00031873,5]
[341310386,1730754632763,-1171.71242233,0.00031886,2]
[341310388,1730754632773,-611.49,0.0003189,10]
[341310390,1730754632784,-219.13,0.0003189,2]
[341310392,1730754632795,-500.0,0.00031899,2]
[341310394,1730754632805,-306.92468693,0.00031899,2]
[341310396,1730754632816,-50696.08317562,0.000319,2]
[341310399,1730754632829,-8306.94783124,0.000319,2]
[341310401,1730754632841,-21483.43098557,0.000319,2]
[341310403,1730754632853,-1658.26750842,0.000319,2]
[341310405,1730754632866,-3114.19,0.000319,2]
[341310410,1730754638316,-131939.67049915,0.000319,2]
[341310411,1730754638326,-1400.0,0.000319,11]
[341310412,1730754638336,-151.0,0.000319,7]
[341310413,1730754638345,-1171.71242233,0.000319,2]
[341310414,1730754638354,-228.58717885,0.000319,4]
[341310415,1730754638364,-11.9230997,0.000319,2]
[341310416,1730754638377,-764.61671494,0.000319,2]
[341310417,1730754638386,-10.72964426,0.000319,2]
[341310418,1730754638426,-1171.37158989,0.000319,2]
[341310419,1730754638438,-35.54998927,0.000319,2]
[341310420,1730754638449,-168.64107482,0.000319,2]
[341310421,1730754638458,-126.30325929,0.000319,2]
[341310422,1730754638482,-576.21718517,0.000319,2]
[341310423,1730754638491,-423.78709723,0.000319,2]
[341310424,1730754638540,-80.29462361,0.000319,2]
[341310425,1730754638549,-192.25949816,0.000319,2]
[341310426,1730754638558,-214.98459352,0.000319,2]
[341310427,1730754638567,-157.47145344,0.000319,2]
[341310428,1730754638576,-57.19189834,0.00031973,5]
[341310429,1730754638597,-443.0959346,0.00031973,5]
[341310431,1730754638607,-153.060072,0.00031973,5]
[341310433,1730754638615,-68.6097934,0.00031973,2]
[341310464,1730754640291,-324.40272468,0.00031973,2]
[341310465,1730754640301,-233.44439235,0.0003199,2]
[341310466,1730754640310,-300.0,0.00031999,10]
[341310467,1730754640319,-300.0,0.00031999,10]
[341310468,1730754640328,-199.97726328,0.00031999,10]
[341310523,1730754643184,-312.18450071,0.00031998,2]
[341310524,1730754643295,-202.66278014,0.00031998,2]
[341310525,1730754643306,-100.02273672,0.00031999,10]
[341310526,1730754643315,-300.0,0.00031999,10]
[341310527,1730754643324,-300.0,0.00031999,10]
[341310528,1730754643335,-2516.517,0.00031999,31]
[341310529,1730754643344,-164.879,0.00031999,31]
[341310530,1730754643354,-1003.8629,0.00031999,2]
[341310531,1730754643364,-152.11531837,0.00031999,7]
[341310532,1730754643375,-23550.32526477,0.00032,15]
[341310533,1730754643388,-20538.0456032,0.00032,15]
[341310534,1730754643458,-357125.81317447,0.00032,15]
[341310619,1730754646421,-34652.03805365,0.00032,15]
[341310620,1730754646433,-13535.60357835,0.00032,15]
[341310621,1730754646445,-3503.5,0.00032,15]
[341310622,1730754646457,-265.20412027,0.00032,15]
[341310629,1730754649873,156.57,0.00015342,2]
[341310631,1730755206045,156.56,0.00015342,2]
[341310632,1730755508817,99533.14,0.00016,2]
[341310633,1730755508843,2547.81,0.00016,2]
[341310634,1730755508869,100000.0,0.00016,2]
[341310635,1730755508895,100000.0,0.00016,2]
[341310636,1730755508921,100000.0,0.00016,2]
[341310637,1730755508945,100000.0,0.00016,2]
[341310638,1730755508968,100000.0,0.00016,2]
[341310639,1730755508992,100000.0,0.00016,2]
[341310640,1730755509018,100000.0,0.00016,2]
[341310641,1730755509049,9843.71,0.00016,2]
[341310642,1730755509080,10000.0,0.00016,2]
[341310643,1730755509110,10000.0,0.00016,2]
[341310644,1730755509138,10000.0,0.00016,2]
[341310645,1730755509165,10000.0,0.00016,2]
[341310646,1730755509192,10000.0,0.00016,2]
[341310647,1730755509218,10000.0,0.00016,2]
[341310648,1730755509245,10000.0,0.00016,2]
[341310649,1730755509272,10000.0,0.00016,2]
[341310650,1730755509300,2123695.89092835,0.00016,2]
[341310651,1730755526667,678.4850478,0.000108,2]
[341310652,1730755531004,3645.54002247,0.000101,2]
[341310653,1730755533238,1179.45513801,0.000153,2]
[341310654,1730755555880,340.36673282,0.00015223,2]
[341310656,1730755558550,-2551.4233244,0.0001892,2]
[341310681,1730755707960,-499.999999,0.0002,2]
[341310682,1730755715930,150.0,0.00015235,2]
[341310683,1730755715950,150.0,0.00015235,2]
[341310684,1730755715969,150.0,0.00015235,2]
[341310685,1730755715990,102.07744412,0.00015235,2]
[341310693,1730755731112,47.92255588,0.000151,2]
[341310694,1730755731133,150.0,0.000151,2]
[341310695,1730755731152,97.37208867,0.000151,2]
[341310710,1730755772420,52.62791133,0.00015342,2]
[341310711,1730755772441,127.03208867,0.00015342,2]
[341310740,1730755832382,-234.67,0.00021918,2]
[341310741,1730755832393,-368.2090949,0.000236,2]
[341310742,1730755832406,-25.7909051,0.000236,2]
[341310743,1730755832416,-445.76344839,0.00023922,2]
[341310744,1730755832431,-223.43255167,0.00023922,2]
[341310745,1730755832443,-596.65,0.00028272,2]
[341310746,1730755832454,-156.56,0.00028858,2]
[341310747,1730755832464,-158.22,0.00029566,2]
[341310748,1730755832475,-501.951718,0.000298,10]
[341310749,1730755832485,-7633.25009034,0.000299,2]
[341310750,1730755832496,-151.2765,0.0003,2]
[341310751,1730755832507,-151.2765,0.0003,2]
[341310752,1730755832518,-276.17475,0.0003,2]
[341310753,1730755832529,-276.17475,0.0003,2]
[341310754,1730755832540,-250.0,0.00030155,2]
[341310755,1730755832550,-220.72,0.0003016,2]
[341310756,1730755832561,-197.72,0.00030165,2]
[341310757,1730755832571,-200.0,0.00030168,2]
[341310758,1730755832582,-304.04,0.0003018,2]
[341310759,1730755832592,-208.41,0.00030206,120]
[341310760,1730755832603,-1085.58,0.00030213,120]
[341310761,1730755832614,-1852.42,0.00030217,2]
[341310762,1730755832626,-667.51,0.00030219,2]
[341310763,1730755832636,-897.0,0.00030232,2]
[341310764,1730755832647,-200.0,0.00030233,2]
[341310765,1730755832657,-23900.0,0.00030233,2]
[341310766,1730755832668,-1951.8,0.00030233,2]
[341310767,1730755832680,-304.96,0.00030233,2]
[341310768,1730755832691,-150.0,0.00030233,7]
[341310769,1730755832701,-250.0,0.00030244,2]
[341310770,1730755832711,-186.375,0.00030244,2]
[341310771,1730755832721,-222.94,0.00030263,2]
[341310772,1730755832732,-176.8,0.00030287,2]
[341310773,1730755832742,-1000.0,0.00030311,2]
[341310774,1730755832752,-1074.83,0.00030334,2]
[341310775,1730755832762,-186.76,0.00030353,120]
[341310776,1730755832772,-176.8,0.00030362,2]
[341310777,1730755832783,-292.82,0.00030434,30]
[341310780,1730755832794,-165.3,0.00030437,120]
[341310781,1730755832804,-176.8,0.00030438,2]
[341310782,1730755832814,-176.8,0.00030514,2]
[341310783,1730755832824,-596.65,0.00030536,2]
[341310784,1730755832835,-156.32,0.00030547,2]
[341310786,1730755832846,-346.52,0.00030549,2]
[341310789,1730755832855,-176.8,0.0003059,2]
[341310792,1730755832866,-165.73,0.00030647,2]
[341310794,1730755832877,-500.0,0.000308,10]
[341310797,1730755832888,-200.0,0.000311,11]
[341310800,1730755832898,-387.54845757,0.00031182,2]
[341310803,1730755832908,-500.0,0.000312,11]
[341310807,1730755832918,-158.22,0.00031228,2]
[341310809,1730755832928,-800.0,0.000313,11]
[341310811,1730755832939,-164.74,0.00031308,2]
[341310814,1730755832949,-387.54845757,0.00031349,2]
[341310817,1730755832959,-202.68,0.00031373,2]
[341310820,1730755832969,-202.68,0.0003139,2]
[341310823,1730755832979,-1100.0,0.000314,11]
[341310837,1730755833275,-202.68,0.00031406,2]
[341310838,1730755833298,-202.68,0.00031423,2]
[341310839,1730755833310,-202.68,0.00031439,2]
[341310840,1730755833319,-202.68,0.00031456,2]
[341310841,1730755833329,-202.68,0.00031472,2]
[341310842,1730755833339,-202.68,0.00031489,2]
[341310843,1730755833348,-1400.0,0.000315,11]
[341310844,1730755833357,-202.68,0.00031505,2]
[341310845,1730755833366,-202.68,0.00031522,2]
[341310846,1730755833380,-202.68,0.00031538,2]
[341310847,1730755833389,-202.68,0.00031555,2]
[341310848,1730755833399,-202.68,0.00031571,2]
[341310849,1730755833408,-202.68,0.00031588,2]
[341310850,1730755833417,-200.0,0.000316,11]
[341310851,1730755833426,-228.7,0.00031602,2]
[341310852,1730755833435,-202.68,0.00031605,2]
[341310853,1730755833445,-202.68,0.00031621,2]
[341310854,1730755833454,-202.68,0.00031638,2]
[341310855,1730755833463,-202.68,0.00031654,2]
[341310856,1730755833472,-202.68,0.00031671,2]
[341310857,1730755833481,-1807.32870263,0.0003168,2]
[341310858,1730755833490,-6232.5472284,0.0003168,2]
[341310859,1730755833498,-202.68,0.00031687,2]
[341310860,1730755833508,-1094.9298,0.000317,2]
[341310861,1730755833517,-7850.73354976,0.000317,15]
[341310862,1730755833526,-200.0,0.000317,11]
[341310863,1730755833535,-7850.73354969,0.00031722,15]
[341310864,1730755833544,-7850.73354969,0.00031744,15]
[341310865,1730755833553,-289.33,0.00031757,10]
[341310866,1730755833563,-387.54845758,0.00031758,2]
[341310867,1730755833572,-7850.73354969,0.00031767,15]
[341310868,1730755833581,-500.0,0.00031773,2]
[341310869,1730755833590,-7850.73354969,0.00031789,15]
[341310870,1730755833599,-150.110506,0.00031798,10]
[341310871,1730755833609,-150.110506,0.00031798,11]
[341310872,1730755833618,-150.110506,0.00031798,12]
[341310873,1730755833631,-150.110506,0.00031798,13]
[341310874,1730755833640,-150.110506,0.00031798,14]
[341310875,1730755833649,-150.110506,0.00031798,2]
[341310876,1730755833658,-150.110506,0.00031798,3]
[341310877,1730755833667,-150.110506,0.00031798,4]
[341310878,1730755833678,-150.110506,0.00031798,5]
[341310879,1730755833688,-150.110506,0.00031798,6]
[341310880,1730755833698,-150.110506,0.00031798,7]
[341310881,1730755833708,-150.110506,0.00031798,8]
[341310882,1730755833717,-150.110506,0.00031798,9]
[341310883,1730755833727,-150.110506,0.00031798,15]
[341310884,1730755833736,-500.0,0.00031799,2]
[341310885,1730755833745,-18685.8186068,0.000318,2]
[341310886,1730755833786,-406.51120962,0.00031799,2]
[341310887,1730755833800,-93.48879038,0.00031799,2]
[341310888,1730755833810,-391.52761736,0.00031799,2]
[341310889,1730755833819,-5141.52111678,0.000318,2]
[341310890,1730755833847,-917.61691343,0.000318,2]
[341310891,1730755833858,-854.98218781,0.000318,2]
[341310892,1730755833914,-1376.20988657,0.000318,2]
[341310893,1730755833925,-73023.85128861,0.000318,2]
[341310894,1730755833934,-22639.3288,0.000318,2]
[341310895,1730755833943,-527.1994,0.000318,2]
[341310896,1730755833952,-322.2292,0.000318,2]
[341310897,1730755833961,-1000.0,0.000318,2]
[341310898,1730755833970,-977.6207,0.000318,2]
[341310899,1730755833979,-500.0,0.000318,10]
[341310900,1730755833988,-200.0,0.000318,11]
[341310901,1730755833997,-303.5243933,0.00031811,15]
[341310902,1730755834009,-739.41199667,0.00031811,15]
[341310903,1730755834027,-385.51796786,0.00031811,15]
[341310904,1730755834038,-6422.27919186,0.00031811,15]
[341310905,1730755834048,-7850.73354969,0.00031833,15]
[341310906,1730755834057,-7850.73354969,0.00031856,15]